bitfinex/quotes_SOLUSD_20241028
["timestamp","ask_amount","ask_price","bid_price","bid_amount"]
[1730112273570,70.12549,177.86,177.85,10.92304214]
[1730112273746,70.25098,177.86,177.85,10.92304214]
[1730112274767,0.12549,177.85,177.75,44.39976856]
[1730112274969,70.0,177.86,177.84,10.92304214]
[1730112275148,70.0,177.86,177.85,10.92304214]
[1730112275760,0.12549,177.85,177.84,10.92304214]
[1730112275945,0.25098,177.85,177.84,10.92304214]
[1730112276266,0.25098,177.85,177.83,10.92304214]
[1730112276567,70.12549,177.84,177.83,10.92304214]
[1730112276759,70.25098,177.84,177.83,10.92304214]
[1730112277970,70.25098,177.84,177.82,10.92304214]
[1730112278263,70.25098,177.84,177.83,10.92304214]
[1730112278493,70.25098,177.84,177.75,44.29976856]
[1730112278494,70.25098,177.84,177.82,10.92304214]
[1730112278651,70.25098,177.84,177.83,10.92304214]
[1730112279974,70.12549,177.86,177.83,10.92304214]
[1730112280269,70.12549,177.86,177.85,10.92304214]
[1730112280454,70.37647,177.86,177.85,10.92304214]
[1730112286270,70.0,177.86,177.85,10.92304214]
[1730112289470,70.0,177.86,177.84,10.92304214]
[1730112289772,70.0,177.86,177.85,10.92304214]
[1730112291155,70.37647,177.86,177.85,10.92304214]
[1730112291365,0.25098,177.85,177.75,44.49976856]
[1730112291659,0.25098,177.85,177.84,10.92304214]
[1730112292976,70.0,177.86,177.84,10.92304214]
[1730112293167,70.12549,177.86,177.85,10.92304214]
[1730112293368,74.46547838,177.86,177.85,10.92304214]
[1730112293677,74.21449838,177.86,177.85,10.92304214]
[1730112293859,0.12549,177.85,177.75,44.49976856]
[1730112294068,0.25098,177.85,177.83,10.92304214]
[1730112294462,0.25098,177.85,177.75,44.39976856]
[1730112294463,0.12549,177.83,177.75,44.29976856]
[1730112294656,0.25098,177.83,177.75,44.29976856]
[1730112294856,0.25098,177.83,177.82,10.92304214]
[1730112295056,4.46572107,177.83,177.82,10.92304214]
[1730112295278,0.25098,177.83,177.75,44.29976856]
[1730112295467,0.25098,177.83,177.81,10.92304214]
[1730112296864,0.25098,177.83,177.82,10.92304214]
[1730112298476,70.0,177.84,177.82,10.92304214]
[1730112298674,70.0,177.84,177.83,10.92304214]
[1730112298882,70.12549,177.84,177.83,10.92304214]
[1730112299691,70.0,177.84,177.76,5.6255]
[1730112299988,70.0,177.84,177.83,10.92304214]
[1730112303669,70.0,177.84,177.75,44.39976856]
[1730112303875,70.0,177.84,177.75,0.7076]
[1730112304076,70.0,177.84,177.83,10.92304214]
[1730112305471,70.0,177.87,177.83,10.92304214]
[1730112305790,70.0,177.87,177.85,10.92304214]
[1730112307184,70.0,177.87,177.76,0.2]
[1730112307391,70.12549,177.87,177.86,10.92304214]
[1730112307587,74.46148522,177.87,177.86,10.92304214]
[1730112308168,4.21050522,177.87,177.86,10.92304214]
[1730112308996,85.9184,177.89,177.86,10.92304214]
[1730112309302,86.04389,177.89,177.88,10.92304214]
[1730112309590,90.25509883,177.89,177.88,10.92304214]
[1730112309790,86.16938,177.89,177.78,0.1]
[1730112309991,90.38058201,177.89,177.86,10.92304214]
[1730112310170,4.21120201,177.88,177.87,10.92304214]
[1730112312390,4.21120201,177.88,177.79,0.1]
[1730112312605,86.16938,177.89,177.87,10.92304214]
[1730112312899,4.21214181,177.88,177.87,10.92304214]
[1730112314190,4.21232154,177.88,177.87,10.92304214]
[1730112315396,4.21232154,177.88,177.79,0.1]
[1730112315588,86.16938,177.89,177.79,0.1]
[1730112315789,4.21253826,177.88,177.87,10.92304214]
[1730112316480,70.0,177.85,177.83,10.92304214]
[1730112317491,70.25098,177.85,177.84,10.92304214]
[1730112317699,74.46449142,177.85,177.84,10.92304214]
[1730112318386,4.21351142,177.85,177.84,10.92304214]
[1730112318701,76.5629,177.87,177.84,10.92304214]
[1730112318898,4.21336967,177.86,177.77,0.1]
[1730112319096,76.5629,177.87,177.77,0.1]
[1730112319299,4.21364189,177.86,177.77,0.1]
[1730112319599,4.21364189,177.85,177.77,0.1]
[1730112319775,76.5629,177.87,177.77,0.1]
[1730112319776,76.5629,177.87,177.84,10.92304214]
[1730112319977,76.81388,177.87,177.86,10.92304214]
[1730112320178,70.0,177.85,177.83,10.92304214]
[1730112320684,4.46520914,177.84,177.81,10.92304214]
[1730112320879,4.21422914,177.83,177.81,10.92304214]
[1730112321086,0.25098,177.82,177.8,10.92304214]
[1730112321676,70.0,177.81,177.73,0.6030399]
[1730112321877,70.0,177.81,177.79,10.92304214]
[1730112322212,70.0,177.81,177.73,0.6030399]
[1730112322213,70.0,177.81,177.74,5.6261]
[1730112322508,70.0,177.81,177.79,10.92304214]
[1730112335306,70.25098,177.81,177.8,10.92304214]
[1730112337981,75.87488,177.81,177.73,0.6030399]
[1730112338186,70.25098,177.81,177.8,10.92304214]
[1730112338404,70.0,177.85,177.8,10.92304214]
[1730112338710,91.7931,177.87,177.84,10.92304214]
[1730112338893,91.7931,177.87,177.86,10.92304214]
[1730112339092,95.99889033,177.87,177.86,10.92304214]
[1730112339689,96.12438033,177.87,177.86,10.92304214]
[1730112340204,92.04408,177.87,177.86,10.92304214]
[1730112340392,96.24983698,177.87,177.86,10.92304214]
[1730112341889,26.24983698,177.87,177.86,10.92304214]
[1730112342090,96.24983698,177.87,177.86,10.92304214]
[1730112344283,96.24983698,177.87,177.86,8.92304214]
[1730112346709,0.25098,177.86,177.85,10.92304214]
[1730112347017,4.45673698,177.86,177.85,10.92304214]
[1730112347599,4.45673698,177.86,177.76,0.6076]
[1730112347600,70.0,177.85,177.76,0.6076]
[1730112347804,70.25098,177.85,177.84,10.92304214]
[1730112348000,27.54059,177.87,177.84,10.92304214]
[1730112348001,91.91859,177.87,177.84,10.92304214]
[1730112348203,91.91859,177.87,177.86,10.92304214]
[1730112348410,96.3756679,177.87,177.86,10.92304214]
[1730112349192,0.12549,177.86,177.85,10.92304214]
[1730112349396,4.4570779,177.86,177.85,10.92304214]
[1730112350396,4.2060979,177.86,177.85,10.92304214]
[1730112350792,4.2060979,177.87,177.85,10.92304214]
[1730112351093,4.2060979,177.86,177.77,0.1]
[1730112351294,70.0,177.87,177.77,0.1]
[1730112351494,0.37647,177.88,177.77,0.1]
[1730112351694,0.37647,177.88,177.87,10.92304214]
[1730112351895,4.58259493,177.88,177.87,10.92304214]
[1730112353414,4.45710493,177.88,177.87,10.92304214]
[1730112354109,70.0,177.87,177.85,10.92304214]
[1730112359607,0.12549,177.86,177.85,10.92304214]
[1730112359808,0.25098,177.86,177.76,1.201]
[1730112360000,0.25098,177.86,177.84,10.92304214]
[1730112361596,0.25098,177.86,177.85,10.92304214]
[1730112361996,70.0,177.87,177.85,10.92304214]
[1730112362208,70.0,177.87,177.86,10.92304214]
[1730112362402,74.46107357,177.87,177.86,10.92304214]
[1730112363021,4.21009357,177.87,177.86,10.92304214]
[1730112363524,70.0,177.89,177.86,10.92304214]
[1730112363705,70.25098,177.89,177.88,10.92304214]
[1730112363910,74.46055105,177.89,177.88,10.92304214]
[1730112365526,4.20957105,177.89,177.88,10.92304214]
[1730112365902,4.18530105,177.89,177.88,10.92304214]
[1730112368633,91.3668,177.95,177.88,10.92304214]
[1730112368813,91.3668,177.95,177.94,10.92304214]
[1730112369005,70.0,177.95,177.94,10.92304214]
[1730112369323,13.27254878,177.97,177.94,10.92304214]
[1730112369509,13.27254878,177.97,177.96,10.92304214]
[1730112369716,70.0,178.0,177.96,10.92304214]
[1730112369905,75.6181,178.0,177.97,10.92304214]
[1730112371320,0.25098,177.99,177.97,10.92304214]
[1730112371534,0.25098,177.99,177.93,43.69216856]
[1730112371535,0.25098,177.99,177.98,10.92304214]
[1730112372321,0.25098,177.99,177.88,0.7076]
[1730112372628,0.25098,177.99,177.96,10.92304214]
[1730112373128,0.25098,177.99,177.97,10.92304214]
[1730112373508,75.6174,178.02,177.98,10.92304214]
[1730112373903,75.6174,178.02,177.99,10.92304214]
[1730112374322,92.3584,178.04,178.01,10.92304214]
[1730112374528,92.3584,178.04,177.99,10.92304214]
[1730112374721,70.0,178.02,177.99,10.92304214]
[1730112375118,70.0,178.02,177.98,10.92304214]
[1730112375430,80.92304214,178.02,177.97,10.92304214]
[1730112375623,70.0,178.02,177.98,10.92304214]
[1730112375825,0.25098,178.01,177.98,10.92304214]
[1730112376045,0.25098,178.01,177.97,10.92304214]
[1730112376224,0.25098,178.01,177.96,10.92304214]
[1730112376428,0.25098,178.01,177.97,10.92304214]
[1730112379218,11.17402214,178.01,177.96,10.92304214]
[1730112379735,0.25098,178.01,177.97,10.92304214]
[1730112381332,5.86858,178.01,177.97,10.92304214]
[1730112381532,11.17402214,177.98,177.88,0.7076]
[1730112381736,11.17402214,177.98,177.93,10.92304214]
[1730112381933,0.25098,177.98,177.94,10.92304214]
[1730112383135,70.0,178.01,177.97,10.92304214]
[1730112384231,75.6177,178.01,177.97,10.92304214]
[1730112384444,0.25098,178.0,177.96,10.92304214]
[1730112384624,11.17402214,178.0,177.94,10.92304214]
[1730112384827,16.79222214,178.0,177.94,10.92304214]
[1730112385026,70.0,177.99,177.94,10.92304214]
[1730112385618,70.0,177.99,177.95,10.92304214]
[1730112387332,70.0,177.99,177.94,10.92304214]
[1730112387534,70.0,177.99,177.95,10.92304214]
[1730112390440,70.0,177.99,177.96,10.92304214]
[1730112392330,70.0,177.99,177.97,10.92304214]
[1730112393543,0.25098,178.0,177.98,10.92304214]
[1730112393735,0.25098,178.0,177.97,10.92304214]
[1730112397448,0.25098,178.0,177.96,10.92304214]
[1730112400525,0.25098,178.0,177.9,0.1]
[1730112400729,0.25098,178.0,177.97,10.92304214]
[1730112403434,70.0,178.03,177.97,10.92304214]
[1730112403639,75.617,178.03,177.98,10.92304214]
[1730112403951,70.0,178.03,177.99,10.92304214]
[1730112404542,70.0,178.03,178.0,10.92304214]
[1730112405638,70.0,178.03,177.99,10.92304214]
[1730112407746,75.617,178.03,177.99,10.92304214]
[1730112408636,75.617,178.03,177.93,43.79216856]
[1730112408637,0.25098,178.03,178.0,10.92304214]
[1730112408858,22.3584,178.04,178.0,10.92304214]
[1730112409160,70.0,178.05,178.01,10.92304214]
[1730112409954,75.6164,178.05,178.01,10.92304214]
[1730112410143,91.5471,178.08,178.03,10.92304214]
[1730112410353,4.19691567,178.07,178.04,10.92304214]
[1730112410532,70.0,178.04,177.94,0.8076]
[1730112410732,80.92304214,178.04,177.99,10.92304214]
[1730112411138,80.92304214,178.04,177.94,0.8076]
[1730112411139,70.0,178.04,178.0,10.92304214]
[1730112413867,80.92304214,178.04,177.99,10.92304214]
[1730112415447,70.0,178.04,178.0,10.92304214]
[1730112417155,11.17402214,178.03,177.94,0.6076]
[1730112417460,10.92304214,178.02,177.97,10.92304214]
[1730112418466,10.92304214,178.02,177.96,10.92304214]
[1730112418467,10.92304214,178.01,177.96,10.92304214]
[1730112419164,86.54044214,178.02,177.91,0.2]
[1730112419346,33.12734214,178.01,177.9,24.484484]
[1730112419546,33.12734214,178.01,177.96,10.92304214]
[1730112420850,33.12734214,178.01,177.92,0.1]
[1730112421044,33.12734214,178.01,177.96,10.92304214]
[1730112421771,33.12734214,178.01,177.95,10.92304214]
[1730112421772,10.92304214,178.0,177.95,10.92304214]
[1730112423754,10.92304214,177.98,177.9,0.6076]
[1730112423959,10.92304214,177.98,177.93,10.92304214]
[1730112424770,11.17402214,177.99,177.94,10.92304214]
[1730112425442,11.17402214,177.99,177.89,0.1]
[1730112426048,11.17402214,177.99,177.94,10.92304214]
[1730112426462,22.2043,178.01,177.97,10.92304214]
[1730112426762,22.2043,178.01,177.91,0.1]
[1730112426763,22.2043,178.01,177.98,10.92304214]
[1730112427077,0.12549,178.03,177.99,10.92304214]
[1730112427374,22.9243,178.06,178.02,10.92304214]
[1730112427550,4.20118632,178.05,178.03,10.92304214]
[1730112427751,22.9243,178.06,178.03,10.92304214]
[1730112427965,4.201186,178.05,177.97,0.1]
[1730112428162,22.9243,178.06,177.97,0.1]
[1730112428369,22.9243,178.06,178.05,10.92304214]
[1730112428594,27.12537719,178.06,178.05,10.92304214]
[1730112433270,20.61377719,178.06,178.05,10.92304214]
[1730112435551,76.2925,178.1,178.05,10.92304214]
[1730112435751,4.20192354,178.09,178.08,10.92304214]
[1730112436675,4.20215707,178.09,178.08,10.92304214]
[1730112437472,9.81735707,178.09,177.98,0.8076]
[1730112437673,10.92304214,178.07,177.95,0.2]
[1730112437878,10.92304214,178.07,177.96,0.1]
[1730112438373,4.20260946,178.06,178.02,10.92304214]
[1730112438580,80.92304214,178.08,178.03,10.92304214]
[1730112438765,4.20369155,178.07,178.03,10.92304214]
[1730112438960,4.20369155,178.06,178.03,10.92304214]
[1730112439163,86.53844214,178.08,178.03,10.92304214]
[1730112439482,4.20336098,178.07,178.03,10.92304214]
[1730112439659,4.20336098,178.06,178.03,10.92304214]
[1730112439861,86.53844214,178.08,178.03,10.92304214]
[1730112440068,4.20438251,178.07,178.03,10.92304214]
[1730112440380,4.20438251,178.06,178.03,10.92304214]
[1730112440588,16.53894214,178.07,178.02,10.92304214]
[1730112440779,4.20439234,178.06,178.02,10.92304214]
[1730112440970,16.53894214,178.07,178.02,10.92304214]
[1730112441164,4.20439234,178.06,178.02,10.92304214]
[1730112441361,16.53894214,178.07,178.02,10.92304214]
[1730112441562,4.20429954,178.06,178.04,10.92304214]
[1730112441776,70.0,178.08,178.04,10.92304214]
[1730112441777,0.25098,178.07,178.04,10.92304214]
[1730112441981,4.2042956,178.06,178.04,10.92304214]
[1730112442260,0.25098,178.07,178.04,10.92304214]
[1730112442460,4.20425488,178.06,178.04,10.92304214]
[1730112442688,0.25098,178.07,178.04,10.92304214]
[1730112442878,4.20425455,178.06,178.04,10.92304214]
[1730112443184,0.25098,178.07,177.96,0.1]
[1730112443479,4.20423003,178.06,178.04,10.92304214]
[1730112443789,70.0,178.08,178.04,10.92304214]
[1730112443988,4.20420559,178.07,178.04,10.92304214]
[1730112444284,4.20420559,178.06,178.05,10.92304214]
[1730112444464,87.21554214,178.1,178.05,10.92304214]
[1730112444465,81.9074,178.1,178.05,10.92304214]
[1730112444662,4.20412794,178.09,178.07,10.92304214]
[1730112444858,4.20412794,178.08,178.07,10.92304214]
[1730112445061,4.20410594,178.08,178.06,10.92304214]
[1730112445279,4.20410594,178.07,178.06,10.92304214]
[1730112445777,6.2925,178.1,177.98,0.2]
[1730112445778,10.92304214,178.09,178.04,10.92304214]
[1730112445984,4.20384431,178.08,178.04,10.92304214]
[1730112446169,92.83044214,178.1,178.05,10.92304214]
[1730112446369,4.20366731,178.09,178.05,10.92304214]
[1730112446568,4.20366731,178.08,178.05,10.92304214]
[1730112446767,81.9074,178.1,178.06,10.92304214]
[1730112446966,4.20364642,178.09,178.06,10.92304214]
[1730112447162,4.20364642,178.08,178.06,10.92304214]
[1730112447467,81.9074,178.1,178.06,10.92304214]
[1730112447667,4.20361612,178.09,178.06,10.92304214]
[1730112447969,4.20361612,178.08,178.06,10.92304214]
[1730112448284,81.9074,178.1,178.06,10.92304214]
[1730112448459,4.20358151,178.09,178.06,10.92304214]
[1730112448665,4.20358151,178.08,178.06,10.92304214]
[1730112448875,76.2925,178.1,178.06,10.92304214]
[1730112449086,4.20358084,178.09,178.06,10.92304214]
[1730112449260,4.20358084,178.08,178.06,10.92304214]
[1730112449457,76.2925,178.1,178.06,10.92304214]
[1730112449673,4.20361746,178.09,178.06,10.92304214]
[1730112449887,4.20361746,178.08,177.98,0.1]
[1730112450073,4.20361746,178.07,177.98,0.1]
[1730112450265,11.17402214,178.09,178.04,10.92304214]
[1730112450465,10.92304214,178.06,177.93,0.2]
[1730112450664,10.92304214,178.04,177.93,0.2]
[1730112450993,17.37304214,178.03,177.93,0.1]
[1730112451287,10.92304214,178.01,177.92,2.248886]
[1730112451496,10.92304214,178.0,177.95,10.92304214]
[1730112452870,75.86828,178.02,177.96,10.92304214]
[1730112453070,86.79132214,178.02,177.97,10.92304214]
[1730112453280,81.17402214,178.02,177.97,10.92304214]
[1730112453588,6.2759,177.97,177.87,5.82560983]
[1730112453885,6.2759,177.97,177.93,10.92304214]
[1730112454387,17.19894214,177.97,177.87,0.1]
[1730112454686,81.17402214,177.96,177.87,0.1]
[1730112454977,81.17402214,177.96,177.91,10.92304214]
[1730112455385,70.25098,177.96,177.92,10.92304214]
[1730112455561,81.17402214,177.96,177.91,10.92304214]
[1730112455968,81.17402214,177.96,177.84,43.79216856]
[1730112456168,81.17402214,177.96,177.91,10.92304214]
[1730112456563,81.17402214,177.96,177.84,43.79216856]
[1730112456766,81.17402214,177.96,177.84,43.69216856]
[1730112456988,81.17402214,177.96,177.9,10.92304214]
[1730112457175,70.25098,177.96,177.84,43.79216856]
[1730112457377,70.25098,177.96,177.9,10.92304214]
[1730112457378,81.17402214,177.96,177.9,10.92304214]
[1730112457572,86.79322214,177.96,177.9,10.92304214]
[1730112457885,86.79322214,177.96,177.82,0.6076]
[1730112457886,0.25098,177.92,177.82,0.6076]
[1730112458069,0.25098,177.92,177.89,10.92304214]
[1730112458695,70.0,177.91,177.88,10.92304214]
[1730112459196,86.0314,177.91,177.8,0.1]
[1730112459485,86.0314,177.91,177.88,10.92304214]
[1730112459788,86.0314,177.91,177.82,0.1]
[1730112459789,86.0314,177.91,177.86,10.92304214]
[1730112460490,96.95444214,177.91,177.8,23.776884]
[1730112460669,96.95444214,177.91,177.86,10.92304214]
[1730112461185,86.0314,177.91,177.87,10.92304214]
[1730112461390,85.4129,177.95,177.9,10.92304214]
[1730112461688,85.4129,177.95,177.93,10.92304214]
[1730112461989,15.4129,177.99,177.94,10.92304214]
[1730112462286,15.4129,177.99,177.96,10.92304214]
[1730112462999,15.4129,177.99,177.97,10.92304214]
[1730112463469,6.193,178.01,177.98,10.92304214]
[1730112463670,6.193,178.01,178.0,10.92304214]
[1730112463967,15.231,178.03,178.0,10.92304214]
[1730112464173,15.231,178.03,177.94,0.1]
[1730112464174,6.193,178.05,178.02,10.92304214]
[1730112464383,6.193,178.05,177.94,0.7076]
[1730112464384,6.193,178.05,178.01,10.92304214]
[1730112464583,6.193,178.05,178.01,17.06320828]
[1730112467292,70.25098,178.04,178.01,17.06320828]
[1730112467493,6.193,178.05,178.01,17.06320828]
[1730112467788,6.193,178.05,178.02,17.06320828]
[1730112468091,15.231,178.07,178.04,17.06320828]
[1730112468395,76.5,178.1,178.06,17.06320828]
[1730112468594,76.5,178.1,178.07,17.06320828]
[1730112468904,6.5,178.1,178.08,17.06320828]
[1730112469581,86.4701,178.12,178.08,17.06320828]
[1730112469770,16.4701,178.12,178.1,17.06320828]
[1730112470973,16.4701,178.12,178.09,17.06320828]
[1730112472092,17.06320828,178.1,178.0,0.1]
[1730112472298,87.18869828,178.11,178.06,17.06320828]
[1730112472597,0.12549,178.1,178.06,17.06320828]
[1730112473089,0.12549,178.1,178.05,17.06320828]
[1730112473285,0.12549,178.1,178.06,17.06320828]
[1730112473491,33.53330828,178.12,178.07,17.06320828]
[1730112474291,17.06320828,178.11,178.06,17.06320828]
[1730112476287,17.06320828,178.09,178.04,17.06320828]
[1730112477006,87.06320828,178.07,178.02,17.06320828]
[1730112477297,17.06320828,178.06,178.01,17.06320828]
[1730112478385,17.06320828,178.05,178.0,17.06320828]
[1730112479812,87.06320828,178.05,178.0,17.06320828]
[1730112479983,17.06320828,178.04,177.99,17.06320828]
[1730112480583,33.47160828,178.04,177.99,17.06320828]
[1730112482099,16.4084,178.04,178.0,17.06320828]
[1730112482902,33.47160828,178.04,177.99,17.06320828]
[1730112484002,17.06320828,178.03,177.98,17.06320828]
[1730112484206,33.47160828,178.04,177.99,17.06320828]
[1730112484408,33.47160828,178.04,177.97,17.06320828]
[1730112484409,17.06320828,178.02,177.97,17.06320828]
[1730112484586,17.06320828,178.02,177.92,0.1]
[1730112484907,17.06320828,178.02,177.96,17.06320828]
[1730112485695,70.12549,178.03,177.9,0.6076]
[1730112485696,17.06320828,178.0,177.9,0.6076]
[1730112485886,17.06320828,178.0,177.95,17.06320828]
[1730112486209,70.12549,178.01,177.96,17.06320828]
[1730112486210,87.18869828,178.01,177.96,17.06320828]
[1730112486712,87.18869828,178.01,177.88,5.81912563]
[1730112486713,17.06320828,177.98,177.88,5.81912563]
[1730112486899,17.06320828,177.96,177.91,17.06320828]
[1730112487085,17.06320828,177.96,177.87,0.1]
[1730112487287,16.204,177.97,177.87,0.1]
[1730112487288,33.26720828,177.97,177.92,17.06320828]
[1730112487601,16.204,177.97,177.92,17.06320828]
[1730112487908,16.204,177.97,177.94,17.06320828]
[1730112488096,16.204,177.97,177.93,17.06320828]
[1730112489008,33.26720828,177.97,177.91,17.06320828]
[1730112489607,17.06320828,177.96,177.91,17.06320828]
[1730112489814,103.26720828,177.97,177.91,17.06320828]
[1730112490191,17.06320828,177.95,177.9,17.06320828]
[1730112490910,17.18869828,177.96,177.91,17.06320828]
[1730112491123,0.25098,177.96,177.91,17.06320828]
[1730112491297,0.25098,177.96,177.92,17.06320828]
[1730112491612,86.204,177.97,177.94,17.06320828]
[1730112493207,86.204,177.97,177.93,17.06320828]
[1730112494109,16.204,177.97,177.94,17.06320828]
[1730112494416,16.204,177.97,177.93,17.06320828]
[1730112494707,16.204,177.97,177.94,17.06320828]
[1730112495793,6.55389,177.98,177.94,17.06320828]
[1730112496301,23.61709828,177.98,177.93,17.06320828]
[1730112496609,17.06320828,177.95,177.86,0.7076]
[1730112496815,17.06320828,177.96,177.9,17.06320828]
[1730112497017,17.06320828,177.96,177.91,17.06320828]
[1730112497919,87.06320828,177.97,177.92,17.06320828]
[1730112499217,17.06320828,177.95,177.86,0.7076]
[1730112499399,17.06320828,177.92,177.87,17.06320828]
[1730112499724,17.06320828,177.91,177.86,17.06320828]
[1730112500492,15.21649,177.94,177.88,17.06320828]
[1730112500493,17.06320828,177.93,177.88,17.06320828]
[1730112500997,17.06320828,177.92,177.87,17.06320828]
[1730112501492,17.06320828,177.92,177.86,17.06320828]
[1730112501694,17.06320828,177.91,177.86,17.06320828]
[1730112502108,0.25098,177.91,177.87,17.06320828]
[1730112502414,70.0,177.9,177.86,17.06320828]
[1730112502599,87.06320828,177.9,177.85,17.06320828]
[1730112505500,70.0,177.9,177.86,17.06320828]
[1730112506013,87.06320828,177.9,177.85,17.06320828]
[1730112507604,6.2327,177.91,177.88,17.06320828]
[1730112509330,6.2327,177.91,177.87,17.06320828]
[1730112510013,6.2327,177.91,177.88,17.06320828]
[1730112510524,6.2327,177.91,177.88,10.93578535]
[1730112511320,6.2327,177.91,177.87,10.93578535]
[1730112511916,10.93578535,177.89,177.79,23.976884]
[1730112512098,10.93578535,177.89,177.84,10.93578535]
[1730112513006,10.93578535,177.9,177.84,10.93578535]
[1730112513424,10.93578535,177.89,177.84,10.93578535]
[1730112514317,80.93578535,177.89,177.84,10.93578535]
[1730112514515,80.93578535,177.89,177.77,8.10287377]
[1730112514516,10.93578535,177.88,177.83,10.93578535]
[1730112515529,10.93578535,177.88,177.77,7.50947377]
[1730112515530,70.0,177.89,177.84,10.93578535]
[1730112516124,70.0,177.89,177.87,10.93578535]
[1730112516321,6.2327,177.91,177.88,10.93578535]
[1730112516635,6.2327,177.91,177.9,10.93578535]
[1730112516812,6.2327,177.91,177.89,10.93578535]
[1730112517017,6.2327,177.91,177.88,10.93578535]
[1730112517537,6.2327,177.91,177.87,10.93578535]
[1730112517702,87.16848535,177.91,177.86,10.93578535]
[1730112517906,70.0,177.89,177.86,10.93578535]
[1730112518115,80.93578535,177.89,177.77,7.50964038]
[1730112518325,80.93578535,177.89,177.84,10.93578535]
[1730112518524,70.0,177.89,177.85,10.93578535]
[1730112520113,70.0,177.89,177.86,10.93578535]
[1730112520410,0.25098,177.9,177.87,17.09060864]
[1730112521022,0.25098,177.9,177.88,17.09060864]
[1730112521221,6.2327,177.91,177.89,17.09060864]
[1730112521425,6.2327,177.91,177.9,17.09060864]
[1730112521627,15.091,177.94,177.9,17.09060864]
[1730112521919,15.091,177.94,177.92,17.09060864]
[1730112522122,0.12549,177.93,177.92,17.09060864]
[1730112522309,15.091,177.94,177.92,17.09060864]
[1730112522531,6.15,177.96,177.93,17.09060864]
[1730112522706,6.15,177.96,177.95,17.09060864]
[1730112522910,15.465,177.98,177.95,17.09060864]
[1730112523134,15.59049,177.98,177.97,17.09060864]
[1730112524229,15.71598,177.98,177.97,17.09060864]
[1730112524632,15.465,177.98,177.97,17.09060864]
[1730112525328,6.1969,178.0,177.97,17.09060864]
[1730112525513,22.0284,178.02,177.93,17.09060864]
[1730112525514,16.411,178.02,177.99,17.09060864]
[1730112525826,16.411,178.02,178.01,17.09060864]
[1730112526423,16.411,178.02,178.0,17.09060864]
[1730112526941,16.411,178.02,178.01,17.09060864]
[1730112527427,16.411,178.02,178.0,17.09060864]
[1730112530436,6.3155,178.04,178.01,17.09060864]
[1730112530737,4.19598086,178.03,178.02,17.09060864]
[1730112530941,4.19598086,178.03,178.01,17.09060864]
[1730112531241,76.3155,178.04,178.01,17.09060864]
[1730112531426,4.19580045,178.03,178.01,17.09060864]
[1730112531619,76.3155,178.04,178.01,17.09060864]
[1730112531820,4.19580045,178.03,178.01,17.09060864]
[1730112532021,76.3155,178.04,178.01,17.09060864]
[1730112532240,4.19580045,178.03,178.01,17.09060864]
[1730112532426,76.3155,178.04,178.01,17.09060864]
[1730112532629,4.19565057,178.03,178.01,17.09060864]
[1730112532938,76.3155,178.04,178.01,17.09060864]
[1730112533143,4.19566869,178.03,178.01,17.09060864]
[1730112533440,76.3155,178.04,178.01,17.09060864]
[1730112534524,4.19538354,178.03,178.01,17.09060864]
[1730112534723,76.3155,178.04,178.01,17.09060864]
[1730112536157,81.9322,178.04,178.0,17.09060864]
[1730112536522,81.9322,178.04,177.88,0.1]
[1730112536523,0.25098,178.0,177.88,0.1]
[1730112536717,0.25098,178.0,177.97,17.09060864]
[1730112536929,0.25098,178.0,177.88,0.2]
[1730112536930,0.25098,178.0,177.98,17.09060864]
[1730112537135,0.12549,178.02,177.99,17.09060864]
[1730112537316,6.3155,178.04,178.01,17.09060864]
[1730112537518,11.9323,178.04,178.02,17.09060864]
[1730112537721,11.9323,178.04,177.93,17.09060864]
[1730112537722,11.9323,178.04,178.01,17.09060864]
[1730112541444,6.3155,178.04,178.01,17.09060864]
[1730112542418,6.3155,178.04,178.0,17.09060864]
[1730112542621,6.3155,178.04,178.01,17.09060864]
[1730112543023,6.3155,178.04,178.02,17.09060864]
[1730112543525,6.3155,178.04,178.01,17.09060864]
[1730112544618,15.2836,178.06,178.03,17.09060864]
[1730112545025,20.8996,178.06,178.02,17.09060864]
[1730112547136,20.8996,178.06,178.03,17.09060864]
[1730112547349,20.8996,178.06,178.04,17.09060864]
[1730112547549,15.2836,178.06,178.04,17.09060864]
[1730112548440,20.8997,178.06,178.04,17.09060864]
[1730112548824,15.2836,178.06,178.04,17.09060864]